Workbook

Sheet паспорт
A1: ПАТ "УКРТРАНСГАЗ" | G1: ПАСПОРТ ФІЗИКО-ХІМІЧНИХ ПОКАЗНИКІВ ПРИРОДНОГО ГАЗУ № 658
A2: Філія "УМГ "ХАРКІВТРАНСГАЗ" | G2: переданого Сєвєродонецьким ЛВУМГ та прийнятого ПАТ "Луганськгаз"
A3: Сєвєродонецьке ЛВУМГ | G3: Маршрут № 658
A4: Вимірювальна хіміко-аналітична лабораторія
A5: Свідоцтво № РЬ089/2014 чинно до 06.06.2017 р. | K5: по газопроводу "Новопсков-Краматорськ" | V5: за період з | X5: 01.03.2017 р. | Z5: по | AA5: 31.03.2017 р.
A7: Число місяця | B7: Компонентний склад, мол. % | N7: Фізико-хімічні показники газу обчислені на основі компонентного складу, 101,325 кПа | X7: Температура точки роси за вологою (Р = 3.92 МПа), °С | Y7: Температура точки роси за вуглеводнями, °С | Z7: Вміст сірководню, г/м3 | AA7: Вміст меркаптанової сірки, г/м3 | AB7: Вміст механічних домішок, г/м3
N8: Густина абсолютна, кг/м3,при 20 °С, | O8: Температура вимірювання/згоряння при 20/25°С
B9: метан, С1 | C9: етан, С2 | D9: пропан, С3 | E9: ізо-бутан, і-С4 | F9: н-бутан, н-С4 | G9: нео-пентан, нео-С5 | H9: ізо-пентан, і-С5 | I9: н-пентан, н-С5 | J9: гексани та вищі, С6+ | K9: кисень, О2 | L9: азот, N2 | M9: діоксид вуглецю, CО2 | O9: Теплота згоряння нижча | R9: Теплота згоряння вища | U9: Число Воббе вище
O10: ккал/м³ | P10: МДж/м³ | Q10: кВт⋅год/м³ | R10: ккал/м³ | S10: МДж/м³ | T10: кВт⋅год/м³ | U10: ккал/м³ | V10: МДж/м³ | W10: кВт⋅год/м³
A11: 1 | O11: =P11*238.8459 -> 8085.435291 | P11: 33.8521 | Q11: =P11/3.6 -> 9.403361111 | R11: =S11*238.8459 -> 8960.996592 | S11: 37.5179 | T11: =S11/3.6 -> 10.42163889 | U11: =V11/0.0041868 -> 11681.73784 | V11: 48.9091 | W11: =V11/3.6 -> 13.58586111 | AC11: =SUM(B11:M11)+$K$42+$N$42 -> 0
A12: 2 | O12: 8085.435291 | P12: 33.8521 | Q12: 9.403361111 | R12: 8960.996592 | S12: 37.5179 | T12: 10.42163889 | U12: 11681.73784 | V12: 48.9091 | W12: 13.58586111 | AC12: 0
A13: 3 | B13: 94.4788 | C13: 2.8753 | D13: 0.7415 | E13: 0.0864 | F13: 0.0943 | G13: 0.0034 | H13: 0.0172 | I13: 0.0126 | J13: 0.0262 | K13: 0.0112 | L13: 1.3853 | M13: 0.2678 | N13: 0.7086 | O13: =P13*238.8459 -> 8172.852891 | P13: 34.2181 | Q13: =P13/3.6 -> 9.505027778 | R13: =S13*238.8459 -> 9056.773798 | S13: 37.9189 | T13: =S13/3.6 -> 10.53302778 | U13: =V13/0.0041868 -> 11807.82459 | V13: 49.437 | W13: =V13/3.6 -> 13.7325 | X13: -7.4 | Y13: -10 | AC13: 100 | AD13: =IF(AC13=100,"ОК"," ") -> ОК
A14: 4 | O14: =P14*238.8459 -> 8172.852891 | P14: 34.2181 | Q14: =P14/3.6 -> 9.505027778 | R14: =S14*238.8459 -> 9056.773798 | S14: 37.9189 | T14: =S14/3.6 -> 10.53302778 | U14: =V14/0.0041868 -> 11807.82459 | V14: 49.437 | W14: =V14/3.6 -> 13.7325 | AC14: 0 | AD14: =IF(AC14=100,"ОК"," ") -> 
A15: 5 | O15: 8172.852891 | P15: 34.2181 | Q15: 9.505027778 | R15: 9056.773798 | S15: 37.9189 | T15: 10.53302778 | U15: 11807.82459 | V15: 49.437 | W15: 13.7325 | AC15: 0
A16: 6 | O16: 8172.852891 | P16: 34.2181 | Q16: 9.505027778 | R16: 9056.773798 | S16: 37.9189 | T16: 10.53302778 | U16: 11807.82459 | V16: 49.437 | W16: 13.7325 | AC16: 0
A17: 7 | O17: 8172.852891 | P17: 34.2181 | Q17: 9.505027778 | R17: 9056.773798 | S17: 37.9189 | T17: 10.53302778 | U17: 11807.82459 | V17: 49.437 | W17: 13.7325 | AC17: 0
A18: 8 | O18: 8172.852891 | P18: 34.2181 | Q18: 9.505027778 | R18: 9056.773798 | S18: 37.9189 | T18: 10.53302778 | U18: 11807.82459 | V18: 49.437 | W18: 13.7325 | AC18: 0
A19: 9 | O19: 8172.852891 | P19: 34.2181 | Q19: 9.505027778 | R19: 9056.773798 | S19: 37.9189 | T19: 10.53302778 | U19: 11807.82459 | V19: 49.437 | W19: 13.7325 | AC19: 0
A20: 10 | O20: 8172.852891 | P20: 34.2181 | Q20: 9.505027778 | R20: 9056.773798 | S20: 37.9189 | T20: 10.53302778 | U20: 11807.82459 | V20: 49.437 | W20: 13.7325 | AC20: 0
A21: 11 | O21: 8172.852891 | P21: 34.2181 | Q21: 9.505027778 | R21: 9056.773798 | S21: 37.9189 | T21: 10.53302778 | U21: 11807.82459 | V21: 49.437 | W21: 13.7325 | AC21: 0
A22: 12 | O22: 8172.852891 | P22: 34.2181 | Q22: 9.505027778 | R22: 9056.773798 | S22: 37.9189 | T22: 10.53302778 | U22: 11807.82459 | V22: 49.437 | W22: 13.7325 | AC22: 0
A23: 13 | B23: 95.6159 | C23: 2.1899 | D23: 0.6056 | E23: 0.0834 | F23: 0.0873 | G23: 0.0055 | H23: 0.0187 | I23: 0.0124 | J23: 0.0082 | K23: 0.0113 | L23: 1.1862 | M23: 0.1756 | N23: 0.7003 | O23: =P23*238.8459 -> 8129.741206 | P23: 34.0376 | Q23: =P23/3.6 -> 9.454888889 | R23: =S23*238.8459 -> 9011.512499 | S23: 37.7294 | T23: =S23/3.6 -> 10.48038889 | U23: =V23/0.0041868 -> 11818.30993 | V23: 49.4809 | W23: =V23/3.6 -> 13.74469444 | AC23: 100 | AD23: ОК
A24: 14 | O24: =P24*238.8459 -> 8129.741206 | P24: 34.0376 | Q24: =P24/3.6 -> 9.454888889 | R24: =S24*238.8459 -> 9011.512499 | S24: 37.7294 | T24: =S24/3.6 -> 10.48038889 | U24: =V24/0.0041868 -> 11818.30993 | V24: 49.4809 | W24: =V24/3.6 -> 13.74469444 | AC24: 0
A25: 15 | O25: 8129.741206 | P25: 34.0376 | Q25: 9.454888889 | R25: 9011.512499 | S25: 37.7294 | T25: 10.48038889 | U25: 11818.30993 | V25: 49.4809 | W25: 13.74469444 | AC25: 0
A26: 16 | O26: 8129.741206 | P26: 34.0376 | Q26: 9.454888889 | R26: 9011.512499 | S26: 37.7294 | T26: 10.48038889 | U26: 11818.30993 | V26: 49.4809 | W26: 13.74469444 | AC26: 0
A27: 17 | O27: 8129.741206 | P27: 34.0376 | Q27: 9.454888889 | R27: 9011.512499 | S27: 37.7294 | T27: 10.48038889 | U27: 11818.30993 | V27: 49.4809 | W27: 13.74469444 | AC27: 0
A28: 18 | O28: 8129.741206 | P28: 34.0376 | Q28: 9.454888889 | R28: 9011.512499 | S28: 37.7294 | T28: 10.48038889 | U28: 11818.30993 | V28: 49.4809 | W28: 13.74469444 | AC28: 0
A29: 19 | O29: 8129.741206 | P29: 34.0376 | Q29: 9.454888889 | R29: 9011.512499 | S29: 37.7294 | T29: 10.48038889 | U29: 11818.30993 | V29: 49.4809 | W29: 13.74469444 | AC29: 0
A30: 20 | O30: 8129.741206 | P30: 34.0376 | Q30: 9.454888889 | R30: 9011.512499 | S30: 37.7294 | T30: 10.48038889 | U30: 11818.30993 | V30: 49.4809 | W30: 13.74469444 | AC30: 0 | AD30: =IF(AC30=100,"ОК"," ") -> 
A31: 21 | O31: 8129.741206 | P31: 34.0376 | Q31: 9.454888889 | R31: 9011.512499 | S31: 37.7294 | T31: 10.48038889 | U31: 11818.30993 | V31: 49.4809 | W31: 13.74469444 | AC31: 0
A32: 22 | O32: 8129.741206 | P32: 34.0376 | Q32: 9.454888889 | R32: 9011.512499 | S32: 37.7294 | T32: 10.48038889 | U32: 11818.30993 | V32: 49.4809 | W32: 13.74469444 | AC32: 0
A33: 23 | B33: 95.4226 | C33: 2.3 | D33: 0.6402 | E33: 0.0862 | F33: 0.0904 | G33: 0.0041 | H33: 0.0207 | I33: 0.0135 | J33: 0.0037 | K33: 0.0109 | L33: 1.2084 | M33: 0.1993 | N33: 0.7017 | O33: =P33*238.8459 -> 8137.408159 | P33: 34.0697 | Q33: =P33/3.6 -> 9.463805556 | R33: =S33*238.8459 -> 9019.561606 | S33: 37.7631 | T33: =S33/3.6 -> 10.48975 | U33: =V33/0.0041868 -> 11816.68577 | V33: 49.4741 | W33: =V33/3.6 -> 13.74280556 | Z33: 0.0001 | AA33: 0.0002 | AB33: відс | AC33: 100 | AD33: =IF(AC33=100,"ОК"," ") -> ОК
A34: 24 | O34: =P34*238.8459 -> 8137.408159 | P34: 34.0697 | Q34: =P34/3.6 -> 9.463805556 | R34: =S34*238.8459 -> 9019.561606 | S34: 37.7631 | T34: =S34/3.6 -> 10.48975 | U34: =V34/0.0041868 -> 11816.68577 | V34: 49.4741 | W34: =V34/3.6 -> 13.74280556 | AC34: 0
A35: 25 | O35: 8137.408159 | P35: 34.0697 | Q35: 9.463805556 | R35: 9019.561606 | S35: 37.7631 | T35: 10.48975 | U35: 11816.68577 | V35: 49.4741 | W35: 13.74280556 | AC35: 0
A36: 26 | O36: 8137.408159 | P36: 34.0697 | Q36: 9.463805556 | R36: 9019.561606 | S36: 37.7631 | T36: 10.48975 | U36: 11816.68577 | V36: 49.4741 | W36: 13.74280556 | AC36: 0
A37: 27 | O37: 8137.408159 | P37: 34.0697 | Q37: 9.463805556 | R37: 9019.561606 | S37: 37.7631 | T37: 10.48975 | U37: 11816.68577 | V37: 49.4741 | W37: 13.74280556 | AC37: 0
A38: 28 | O38: 8137.408159 | P38: 34.0697 | Q38: 9.463805556 | R38: 9019.561606 | S38: 37.7631 | T38: 10.48975 | U38: 11816.68577 | V38: 49.4741 | W38: 13.74280556 | AC38: 0
A39: 29 | O39: 8137.408159 | P39: 34.0697 | Q39: 9.463805556 | R39: 9019.561606 | S39: 37.7631 | T39: 10.48975 | U39: 11816.68577 | V39: 49.4741 | W39: 13.74280556 | AC39: 0
A40: 30 | O40: 8137.408159 | P40: 34.0697 | Q40: 9.463805556 | R40: 9019.561606 | S40: 37.7631 | T40: 10.48975 | U40: 11816.68577 | V40: 49.4741 | W40: 13.74280556 | AC40: 0
A41: 31 | O41: 8137.408159 | P41: 34.0697 | Q41: 9.463805556 | R41: 9019.561606 | S41: 37.7631 | T41: 10.48975 | U41: 11816.68577 | V41: 49.4741 | W41: 13.74280556 | AC41: 0
A42: Рівень одоризації відповідає чинним нормативним документам | O42: =SUMPRODUCT(O11:O41,' розрахунок'!D7:D37)/' розрахунок'!D38 -> 8142.874904 | P42: =SUMPRODUCT(P11:P41,' розрахунок'!D7:D37)/' розрахунок'!D38 -> 34.09258817 | Q42: =SUMPRODUCT(Q11:Q41,' розрахунок'!D7:D37)/' розрахунок'!D38 -> 9.470163379 | R42: =SUMPRODUCT(R11:R41,' розрахунок'!D7:D37)/' розрахунок'!D38 -> 9025.019322 | S42: =SUMPRODUCT(S11:S41,' розрахунок'!D7:D37)/' розрахунок'!D38 -> 37.78595036 | T42: =SUMPRODUCT(T11:T41,' розрахунок'!D7:D37)/' розрахунок'!D38 -> 10.49609732
H43: Середньозважене значення теплоти згоряння:
B46: Начальник управління Сєвєродонецького ЛВУМГ Головко Ю.О.
C47: Підрозділу підприємства, якому підпорядкована лабораторія | O47: прізвище | R47: підпис | V47: дата
B48: Інженер ІІ кат.вимірювальної хіміко-аналітичної лабораторії Єрьоменко М.О.
C49: Лабораторія, де здійснювалось вимірювання газу | O49: прізвище | R49: підпис | V49: дата
B50: Начальник служби метрології Ісаєв В.С.
C51: Підрозділу, відповідального за облік газу за маршрутом | O51: прізвище | R51: підпис | V51: дата

Sheet розрахунок (hidden)
A2: Додаток до Паспорту фізико-хімічних показників природного газу по маршруту № 658
A4: Число місяця | B4: Теплота згоряння вища, МДж/м3 | C4: Луганська область | D4: Загальний обсяг газу, м3
C5: Обсяг газу переданого за добу, м3
C6: ГРС смт. Підгорівка
A7: 1 | B7: 37.5179 | C7: 31841.51 | D7: =SUM(C7:C7) -> 31841.51
A8: 2 | B8: 37.5179 | C8: 32130.35 | D8: 32130.35
A9: 3 | B9: 37.9189 | C9: 31816.62 | D9: 31816.62
A10: 4 | B10: 37.9189 | C10: 31476.62 | D10: 31476.62
A11: 5 | B11: 37.9189 | C11: 31783.63 | D11: 31783.63
A12: 6 | B12: 37.9189 | C12: 29121.66 | D12: 29121.66
A13: 7 | B13: 37.9189 | C13: 30160.77 | D13: 30160.77
A14: 8 | B14: 37.9189 | C14: 30267.39 | D14: 30267.39
A15: 9 | B15: 37.9189 | C15: 28328.47 | D15: 28328.47
A16: 10 | B16: 37.9189 | C16: 27799.95 | D16: 27799.95
A17: 11 | B17: 37.9189 | C17: 27349.81 | D17: 27349.81
A18: 12 | B18: 37.9189 | C18: 29560.23 | D18: 29560.23
A19: 13 | B19: 37.7294 | C19: 30544.01 | D19: 30544.01
A20: 14 | B20: 37.7294 | C20: 28848.28 | D20: 28848.28
A21: 15 | B21: 37.7294 | C21: 27453.11 | D21: 27453.11
A22: 16 | B22: 37.7294 | C22: 28105.74 | D22: 28105.74
A23: 17 | B23: 37.7294 | C23: 28676.14 | D23: 28676.14
A24: 18 | B24: 37.7294 | C24: 31338.01 | D24: 31338.01
A25: 19 | B25: 37.7294 | C25: 33455.98 | D25: 33455.98
A26: 20 | B26: 37.7294 | C26: 30427.13 | D26: 30427.13
A27: 21 | B27: 37.7294 | C27: 29018.47 | D27: 29018.47
A28: 22 | B28: 37.7294 | C28: 26785.1 | D28: 26785.1
A29: 23 | B29: 37.7631 | C29: 23999 | D29: 23999
A30: 24 | B30: 37.7631 | C30: 22691.88 | D30: 22691.88
A31: 25 | B31: 37.7631 | C31: 24839.31 | D31: 24839.31
A32: 26 | B32: 37.7631 | C32: 27673.56 | D32: 27673.56
A33: 27 | B33: 37.7631 | C33: 32889.87 | D33: 32889.87
A34: 28 | B34: 37.7631 | C34: 31777.24 | D34: 31777.24
A35: 29 | B35: 37.7631 | C35: 28050.38 | D35: =C35 -> 28050.38
A36: 30 | B36: 37.7631 | C36: 30731.72 | D36: =C36 -> 30731.72
A37: 31 | B37: 37.7631 | C37: 29601.97 | D37: =C37 -> 29601.97
A38: Загальний обсяг газу, м3 | C38: =SUM(C7:C37) -> 908543.91 | D38: 908543.91
A39: Енергія, МДж | C39: =SUMPRODUCT(B7:B37,C7:C37) -> 34330195.09 | D39: =SUMPRODUCT(B7:B37,D7:D37) -> 34330195.09
A40: Теплота згоряння (середньозважене значення за місяць), МДж/м³ | C40: =C39/C38 -> 37.78595036 | D40: 37.78595036
A41: Теплота згоряння (середньозважене значення за місяць), ккал/м³ | C41: =C40*238.8459 -> 9025.019322 | D41: 9025.019322
A42: Теплота згоряння (середньозважене значення за місяць), кВт*год./м³ | C42: =C40/3.6 -> 10.49609732 | D42: 10.49609732

Sheet додаток
A2: Додаток до Паспорту фізико-хімічних показників природного газу №658
A4: Область | B4: ГРС, прямий споживач | C4: Cередньозважене значення вищої теплоти згоряння
C5: МДж/м³ | D5: ккал/м³ | E5: кВт*год./м³
A6: Луганська область | B6: ГРС смт. Підгорівка | C6: 37.79 | D6: 9025 | E6: 10.5
A7: Середньозважене значення вищої теплоти згоряння по маршруту №658 | C7: 37.79 | D7: 9025 | E7: 10.5
A11: Начальник управління Сєвєродонецького ЛВУМГ Головко Ю.О.
A12: Підрозділу підприємства, якому підпорядкована лабораторія | D12: прізвище | E12: підпис | F12: дата
A13: Інженер ІІ кат.вимірювальної хіміко-аналітичної лабораторії Єрьоменко М.О.
A14: Лабораторія, де здійснювалось вимірювання газу | D14: прізвище | E14: підпис | F14: дата
A15: Начальник служби метрології Ісаєв В.С.
A16: Підрозділу, відповідального за облік газу за маршрутом | D16: прізвище | E16: підпис | F16: дата
F20: дата
F22: дата
F24: дата

Sheet variablesList (hidden)
A1: 3 | B1: x:\gaysin | C1: 10, 11, 24, 25, 127, 128, 132, 180, 207, 215 | D1: x:\
B2: x:\Illinci
B3: x:\Talne
